fUSD/lending_fUSD_20240404
["ID","MTS","AMOUNT","RATE_DAILY","PERIOD"]
[321480860,1712230232229,-249.86,0.00023698,2]
[321480861,1712230232239,-249.86,0.00023762,2]
[321480862,1712230232248,-499.99,0.00023762,2]
[321480863,1712230232258,-249.86,0.00023826,2]
[321480864,1712230232268,-170.0,0.00023844,2]
[321480865,1712230232278,-249.86,0.0002389,2]
[321480866,1712230232287,-165.29,0.00023939,2]
[321480867,1712230232296,-1798.2,0.00023944,2]
[321480868,1712230232306,-249.86,0.00023954,2]
[321480869,1712230232316,-249.86,0.00024018,2]
[321480870,1712230232325,-249.86,0.00024082,2]
[321480871,1712230232335,-249.86,0.00024147,2]
[321480872,1712230232345,-249.86,0.00024211,2]
[321480874,1712230232355,-249.86,0.00024275,2]
[321480875,1712230232364,-249.86,0.00024339,2]
[321480876,1712230232374,-249.86,0.00024403,2]
[321480877,1712230232385,-249.86,0.00024467,2]
[321480878,1712230232395,-1456.18276136,0.00024471,2]
[321480879,1712230232404,-215.55,0.00024477,2]
[321480880,1712230232413,-888.0,0.000245,2]
[321480881,1712230232423,-249.86,0.00024531,2]
[321480882,1712230232433,-167.62,0.00024584,2]
[321480883,1712230232442,-249.86,0.00024595,2]
[321480884,1712230232452,-166.81148,0.0002475,2]
[321480885,1712230232462,-389.01570147,0.00024897,2]
[321480886,1712230232472,-1315.35580755,0.00024897,2]
[321480887,1712230232482,-232.1230362,0.00024899,2]
[321480888,1712230232491,-677.455,0.000249,2]
[321480889,1712230232500,-888.0,0.000249,2]
[321480890,1712230232510,-448.0,0.000249,2]
[321480891,1712230232519,-1456.18276136,0.00024929,2]
[321480892,1712230232529,-2267.0972,0.00024959,2]
[321480893,1712230232539,-155.55423192,0.00024968,2]
[321480894,1712230232549,-156.19681744,0.00024968,2]
[321480895,1712230232558,-389.81876723,0.00024968,2]
[321480896,1712230232568,-155.68969577,0.00024968,2]
[321480897,1712230232577,-155.77109055,0.00024969,2]
[321480898,1712230232587,-345.10287568,0.00024969,2]
[321480899,1712230232596,-155.60797806,0.00024969,2]
[321480900,1712230232606,-155.86425047,0.00024969,2]
[321480901,1712230232689,-16689.59856277,0.00024969,2]
[321480902,1712230232710,-324.10000261,0.00024969,2]
[321480903,1712230232734,-4143.97631051,0.00024969,2]
[321480904,1712230232747,-496.29675969,0.00024969,2]
[321480905,1712230232767,-670.78694448,0.00024969,2]
[321480931,1712230237955,-894.5229983,0.00024969,2]
[321480934,1712230237966,-2197.24144358,0.0002497,2]
[321480936,1712230237975,-6413.8770438,0.00024991,2]
[321480938,1712230237985,-26928.80767958,0.00024991,2]
[321480940,1712230238065,-29158.30092002,0.00024991,2]
[321480941,1712230238076,-352.79109862,0.00024997,2]
[321480942,1712230238085,-180.09860931,0.00024997,2]
[321480943,1712230238095,-3820.4212277,0.00024997,2]
[321480944,1712230238104,-8960.97150277,0.00024997,2]
[321480945,1712230238114,-205.59226142,0.00024997,2]
[321480946,1712230238123,-262.26705623,0.00024997,2]
[321480947,1712230238133,-155.7794274,0.00024997,2]
[321480948,1712230238142,-4382.42519402,0.00024997,2]
[321480949,1712230238152,-156.94569599,0.00024997,2]
[321480950,1712230238161,-487.23953231,0.00024997,2]
[321480951,1712230238170,-155.81590189,0.00024997,2]
[321480952,1712230238180,-1757.21056864,0.00024997,2]
[321480953,1712230238189,-374.60114672,0.00024997,2]
[321480954,1712230238198,-165.1822536,0.00024997,2]
[321480955,1712230238208,-2346.28190272,0.00024997,2]
[321480956,1712230238217,-571.26988665,0.00024997,2]
[321480957,1712230238227,-219.20729244,0.00024997,2]
[321480958,1712230238235,-156.19620368,0.00024997,2]
[321480959,1712230238245,-2064.51246302,0.00024998,2]
[321480960,1712230238255,-3723.30371651,0.00024998,2]
[321480961,1712230238264,-155.0,0.00024998,2]
[321480962,1712230238273,-214.80646049,0.00024998,2]
[321480963,1712230238282,-10557.61748168,0.00024998,2]
[321480964,1712230238291,-155.0,0.00024998,2]
[321480965,1712230238300,-155.40212622,0.00024998,2]
[321480966,1712230238309,-1237.33265613,0.00024998,2]
[321480967,1712230238318,-733.69667638,0.00024999,2]
[321480968,1712230238328,-1657.70000002,0.00024999,2]
[321480969,1712230238338,-639.06654481,0.00024999,2]
[321480970,1712230238347,-75499.19985369,0.00025,2]
[321480971,1712230238357,-800.0,0.00025,3]
[321480972,1712230238366,-2601.01958159,0.00025,2]
[321480973,1712230238375,-155.0,0.00025,2]
[321480974,1712230238384,-16941.4416594,0.00025008,2]
[321480976,1712230238394,-2399.4860484,0.00025025,2]
[321480978,1712230238403,-277.12,0.00025093,2]
[321480980,1712230238412,-277.12,0.000251,2]
[321480982,1712230238421,-277.12,0.00025106,2]
[321480984,1712230238430,-277.12,0.00025113,2]
[321480985,1712230238439,-277.12,0.00025119,2]
[321480986,1712230238448,-277.12,0.00025126,2]
[321480987,1712230238457,-277.12,0.00025133,2]
[321480988,1712230238466,-277.12,0.00025139,2]
[321480989,1712230238475,-277.12,0.00025146,2]
[321480990,1712230238484,-277.12,0.00025152,2]
[321480991,1712230238494,-277.12,0.00025159,2]
[321480992,1712230238503,-277.12,0.00025166,2]
[321480993,1712230238512,-277.12,0.00025172,2]
[321480994,1712230238521,-277.12,0.00025179,2]
[321480995,1712230238530,-277.12,0.00025185,2]
[321480996,1712230238539,-277.12,0.00025192,2]
[321480997,1712230238549,-277.12,0.00025199,2]
[321480998,1712230238558,-277.12,0.00025205,2]
[321480999,1712230238567,-277.12,0.00025212,2]
[321481000,1712230238577,-277.12,0.00025219,2]
[321481001,1712230238586,-1456.18276137,0.00025357,2]
[321481002,1712230238595,-954.24,0.00025739,2]
[321481003,1712230238604,-3374.75,0.00025898,2]
[321481004,1712230238614,-569.6,0.00026297,2]
[321481005,1712230238623,-544.32,0.00026484,2]
[321481006,1712230238633,-155.76223834,0.00027,2]
[321481007,1712230238642,-850.0,0.00027,3]
[321481008,1712230238651,-1000.0,0.000272,2]
[321481009,1712230238660,-166.81149,0.0002725,2]
[321481010,1712230238669,-250.0,0.00027397,2]
[321481011,1712230238678,-389.01570141,0.00027531,2]
[321481012,1712230238687,-1315.35580752,0.00027531,2]
[321481013,1712230238697,-355.0,0.000278,2]
[321481014,1712230238718,-150.694,0.00027975,2]
[321481015,1712230238727,-151.0,0.00027975,2]
[321481016,1712230238736,-150.0,0.00027975,2]
[321481017,1712230238747,-150.529,0.00027975,2]
[321481018,1712230238757,-200.0,0.00027975,2]
[321481019,1712230238766,-153.259,0.00027975,2]
[321481020,1712230238777,-150.0,0.00027975,2]
[321481021,1712230238790,-265.438,0.00027975,2]
[321481022,1712230238800,-1631.0,0.00027975,2]
[321481023,1712230238810,-2431.0,0.00027975,2]
[321481024,1712230238821,-151.825,0.00027975,2]
[321481025,1712230238830,-207.0,0.00027975,2]
[321481026,1712230238840,-214.0,0.00027975,2]
[321481027,1712230238849,-4786.0,0.00027975,2]
[321481028,1712230238859,-2550.626,0.00027975,2]
[321481029,1712230238868,-379.663,0.00027975,2]
[321481030,1712230238878,-150.0,0.00027975,2]
[321481031,1712230238888,-300.0,0.00027975,2]
[321481032,1712230238897,-300.0,0.00027975,2]
[321481033,1712230238906,-1000.0,0.00027975,2]
[321481034,1712230238916,-980.0,0.00028,5]
[321481035,1712230238925,-954.24,0.00028003,2]
[321481036,1712230238934,-150.0,0.00028508,2]
[321481037,1712230238943,-150.0,0.00028533,2]
[321481038,1712230238953,-150.0,0.00028537,2]
[321481039,1712230238962,-150.0,0.00028546,2]
[321481040,1712230238971,-150.0,0.00028547,2]
[321481041,1712230238980,-150.0,0.00028567,2]
[321481042,1712230238990,-150.0,0.00028572,2]
[321481043,1712230238999,-150.0,0.00028589,2]
[321481044,1712230239145,-150.0,0.00028595,2]
[321481045,1712230239155,-150.0,0.00028601,2]
[321481046,1712230239165,-150.0,0.00028601,2]
[321481047,1712230239174,-150.0,0.00028605,2]
[321481048,1712230239184,-150.0,0.00028606,2]
[321481049,1712230239194,-150.0,0.00028606,2]
[321481050,1712230239203,-150.0,0.00028606,2]
[321481051,1712230239213,-150.0,0.00028609,2]
[321481052,1712230239222,-150.0,0.00028614,2]
[321481053,1712230239231,-1500.0,0.00028614,2]
[321481054,1712230239240,-150.0,0.00028614,2]
[321481055,1712230239249,-150.0,0.00028617,2]
[321481056,1712230239258,-150.0,0.00028623,2]
[321481057,1712230239267,-150.0,0.00028625,2]
[321481058,1712230239277,-150.0,0.00028632,2]
[321481059,1712230239286,-150.0,0.00028633,2]
[321481060,1712230239295,-150.0,0.00028633,2]
[321481061,1712230239304,-150.0,0.00028635,2]
[321481062,1712230239314,-150.0,0.00028636,2]
[321481063,1712230239324,-150.0,0.00028636,2]
[321481064,1712230239333,-150.0,0.00028637,2]
[321481065,1712230239342,-3374.75,0.00028638,2]
[321481066,1712230239351,-150.0,0.00028642,2]
[321481067,1712230239360,-150.0,0.00028645,2]
[321481068,1712230239370,-150.0,0.00028646,2]
[321481069,1712230239379,-150.0,0.00028652,2]
[321481070,1712230239388,-150.0,0.00028652,2]
[321481071,1712230239397,-150.0,0.00028656,2]
[321481072,1712230239407,-150.0,0.0002866,2]
[321481073,1712230239416,-150.0,0.00028661,2]
[321481074,1712230239425,-150.0,0.00028662,2]
[321481075,1712230239435,-150.0,0.00028672,2]
[321481076,1712230239444,-150.0,0.00028676,2]
[321481077,1712230239454,-150.0,0.00028678,2]
[321481078,1712230239463,-150.0,0.00028681,2]
[321481079,1712230239474,-150.0,0.00028686,2]
[321481080,1712230239485,-150.0,0.00028687,2]
[321481081,1712230239495,-1500.0,0.00028688,2]
[321481082,1712230239504,-150.0,0.00028688,2]
[321481083,1712230239514,-1500.0,0.00028689,2]
[321481084,1712230239525,-150.0,0.00028692,2]
[321481085,1712230239534,-150.0,0.00028693,2]
[321481086,1712230239544,-1500.0,0.00028696,2]
[321481087,1712230239555,-150.0,0.00028696,2]
[321481088,1712230239564,-150.0,0.00028698,2]
[321481089,1712230239574,-150.0,0.00028703,2]
[321481090,1712230239583,-150.0,0.00028703,2]
[321481091,1712230239594,-150.0,0.00028704,2]
[321481092,1712230239604,-150.0,0.00028706,2]
[321481093,1712230239614,-150.0,0.00028707,2]
[321481094,1712230239623,-150.0,0.00028711,2]
[321481095,1712230239633,-150.0,0.00028712,2]
[321481096,1712230239643,-150.0,0.00028712,2]
[321481098,1712230239652,-150.0,0.00028725,2]
[321481100,1712230239661,-150.0,0.00028729,2]
[321481102,1712230239670,-150.0,0.00028729,2]
[321481103,1712230239679,-1500.0,0.00028731,2]
[321481104,1712230239691,-150.0,0.00028732,2]
[321481105,1712230239701,-150.0,0.00028735,2]
[321481107,1712230239715,-150.0,0.00028736,2]
[321481109,1712230239725,-150.0,0.0002874,2]
[321481110,1712230239735,-150.0,0.00028741,2]
[321481111,1712230239744,-150.0,0.00028741,2]
[321481112,1712230239753,-150.0,0.00028742,2]
[321481113,1712230239765,-24325.78496019,0.00028743,2]
[321481114,1712230239775,-150.0,0.00028755,2]
[321481115,1712230239786,-150.0,0.00028755,2]
[321481116,1712230239796,-150.0,0.00028757,2]
[321481117,1712230239805,-150.0,0.00028763,2]
[321481118,1712230239815,-150.0,0.00028764,2]
[321481119,1712230239825,-150.0,0.00028768,2]
[321481120,1712230239835,-150.0,0.00028771,2]
[321481121,1712230239844,-150.0,0.00028771,2]
[321481122,1712230239853,-150.0,0.00028789,2]
[321481123,1712230239863,-150.0,0.0002879,2]
[321481125,1712230239872,-150.0,0.00028797,2]
[321481127,1712230239881,-1000.0,0.000288,2]
[321481128,1712230239891,-888.0,0.000288,10]
[321481130,1712230239900,-150.0,0.00028806,2]
[321481132,1712230239910,-150.0,0.0002881,2]
[321481134,1712230239919,-150.0,0.00028819,2]
[321481137,1712230239929,-150.0,0.00028821,2]
[321481138,1712230239938,-150.0,0.00028824,2]
[321481139,1712230239947,-150.0,0.00028831,2]
[321481140,1712230239957,-150.0,0.00028834,2]
[321481141,1712230239966,-150.0,0.00028838,2]
[321481142,1712230239975,-150.0,0.00028844,2]
[321481143,1712230239984,-150.0,0.00028855,2]
[321481144,1712230239993,-150.0,0.00028858,2]
[321481145,1712230240003,-155.0,0.00029,2]
[321481146,1712230240012,-560.73809275,0.00029,2]
[321481147,1712230240022,-200.0,0.00029,2]
[321481148,1712230240032,-480.0,0.00029,13]
[321481149,1712230240042,-403.0,0.00029,2]
[321481150,1712230240051,-900.0,0.00029,3]
[321481151,1712230240061,-200.0,0.00029,2]
[321481152,1712230240071,-200.0,0.00029,2]
[321481153,1712230240080,-888.0,0.00029,10]
[321481154,1712230240089,-569.6,0.00029219,2]
[321481155,1712230240098,-200.0,0.0002929,2]
[321481156,1712230240107,-150.0,0.00029312,2]
[321481157,1712230240117,-150.0,0.00029338,2]
[321481158,1712230240126,-150.0,0.00029358,2]
[321481159,1712230240136,-150.0,0.00029375,2]
[321481160,1712230240145,-150.0,0.00029412,2]
[321481161,1712230240154,-150.0,0.00029422,2]
[321481162,1712230240164,-544.32,0.00029427,2]
[321481163,1712230240173,-150.0,0.0002943,2]
[321481164,1712230240182,-150.0,0.0002943,2]
[321481165,1712230240192,-150.0,0.00029432,2]
[321481166,1712230240203,-150.0,0.00029439,2]
[321481167,1712230240213,-226.66,0.00029446,2]
[321481168,1712230240222,-226.66,0.00029453,2]
[321481169,1712230240231,-226.66,0.00029461,2]
[321481170,1712230240241,-150.0,0.00029466,2]
[321481171,1712230240251,-226.66,0.00029469,2]
[321481172,1712230240260,-226.66,0.00029477,2]
[321481173,1712230240270,-150.0,0.00029483,2]
[321481174,1712230240279,-226.66,0.00029484,2]
[321481175,1712230240288,-226.66,0.00029492,2]
[321481176,1712230240298,-226.66,0.000295,2]
[321481177,1712230240308,-441.09329125,0.000295,3]
[321481178,1712230240317,-226.66,0.00029508,2]
[321481179,1712230240327,-226.66,0.00029515,2]
[321481180,1712230240336,-226.66,0.00029523,2]
[321481181,1712230240345,-226.66,0.00029531,2]
[321481182,1712230240354,-226.66,0.00029539,2]
[321481183,1712230240363,-150.0,0.00029546,2]
[321481184,1712230240373,-226.66,0.00029546,2]
[321481185,1712230240382,-150.0,0.0002955,2]
[321481186,1712230240391,-226.66,0.00029554,2]
[321481187,1712230240400,-226.66,0.00029562,2]
[321481188,1712230240409,-150.0,0.00029567,2]
[321481189,1712230240418,-226.66,0.0002957,2]
[321481190,1712230240427,-226.66,0.00029578,2]
[321481191,1712230240436,-200.0,0.00029583,2]
[321481192,1712230240445,-226.66,0.00029585,2]
[321481193,1712230240454,-226.66,0.00029593,2]
[321481194,1712230240463,-1895.13172165,0.00029722,28]
[321481195,1712230240473,-166.81148,0.0002975,2]
[321481196,1712230240483,-2640.21942399,0.0002999,2]
[321481197,1712230240492,-405.14841286,0.0003,4]
[321481198,1712230240502,-200.33745626,0.0003,4]
[321481199,1712230240511,-155.0,0.0003,2]
[321481200,1712230240521,-3206.28076084,0.0003,2]
[321481201,1712230240531,-511.83599996,0.0003,4]
[321481202,1712230240540,-606.74427312,0.0003,4]
[321481203,1712230240550,-930.69999968,0.0003,4]
[321481204,1712230240559,-19294.12077171,0.0003,4]
[321481205,1712230240569,-999.34,0.0003,2]
[321481206,1712230240579,-300.12,0.0003,2]
[321481207,1712230240588,-389.01570141,0.00030164,2]
[321481208,1712230240598,-1315.35580752,0.00030164,2]
[321481209,1712230240607,-954.24,0.00030267,2]
[321481210,1712230240618,-999.34,0.0003081,2]
[321481211,1712230240628,-150.0,0.00030975,2]
[321481212,1712230240637,-150.0,0.00030975,2]
[321481213,1712230240649,-150.0,0.00030975,2]
[321481214,1712230240659,-150.0,0.00030975,2]
[321481215,1712230240670,-1631.0,0.00030975,2]
[321481216,1712230240681,-2408.0,0.00030975,2]
[321481217,1712230240691,-207.0,0.00030975,2]
[321481218,1712230240702,-214.0,0.00030975,2]
[321481219,1712230240715,-2369.0,0.00030975,2]
[321481220,1712230240725,-950.0,0.00031,3]
[321481221,1712230240734,-180.0,0.00031342,2]
[321481222,1712230240745,-300.12,0.00031515,2]
[321481223,1712230240754,-999.34,0.0003162,2]
[321481224,1712230240764,-195.13,0.00031644,2]
[321481226,1712230240773,-331.73521384,0.00032,4]
[321481228,1712230240785,-569.6,0.00032141,2]
[321481230,1712230240794,-166.81149,0.0003225,2]
[321481232,1712230240803,-544.32,0.0003237,2]
[321481233,1712230240812,-999.34,0.0003243,2]
[321481235,1712230240821,-1855.09,0.00032489,2]
[321481236,1712230240830,-954.24,0.00032531,2]
[321481237,1712230240840,-389.01570141,0.00032798,2]
[321481238,1712230240849,-1315.35580752,0.00032798,2]
[321481239,1712230240861,-156.25,0.00032877,2]
[321481240,1712230240871,-156.25,0.00032877,2]
[321481241,1712230240881,-156.25,0.00032877,2]
[321481242,1712230240892,-156.25,0.00032877,2]
[321481243,1712230240902,-150.0,0.00032877,2]
[321481244,1712230240911,-1000.0,0.00033,3]
[321481245,1712230240921,-300.12,0.0003303,2]
[321481246,1712230240931,-999.34,0.0003324,2]
[321481247,1712230240941,-150.0,0.00033742,2]
[321481248,1712230240951,-150.0,0.00033975,2]
[321481249,1712230240961,-150.0,0.00033975,2]
[321481250,1712230240971,-236.0,0.00033975,2]
[321481251,1712230240980,-207.0,0.00033975,2]
[321481252,1712230240990,-214.0,0.00033975,2]
[321481253,1712230241000,-999.34,0.0003405,2]
[321481254,1712230241010,-256.56332924,0.0003429,7]
[321481255,1712230241019,-248.78,0.00034493,2]
[321481256,1712230241029,-300.12,0.00034545,2]
[321481257,1712230241039,-150.0,0.00034548,10]
[321481258,1712230241049,-150.0,0.00034607,2]
[321481259,1712230241059,-166.81148,0.0003475,2]
[321481260,1712230241069,-613.43,0.00034764,2]
[321481261,1712230241079,-954.24,0.00034795,2]
[321481262,1712230241089,-9055.59018033,0.000348,4]
[321481263,1712230241098,-151.0,0.00034814,30]
[321481264,1712230241108,-999.34,0.0003486,2]
[321481265,1712230241118,-159.12958476,0.00034911,7]
[321481266,1712230241127,-189.30894272,0.00034932,7]
[321481267,1712230241138,-153.09301931,0.00034964,7]
[321481268,1712230241147,-159.12958476,0.00034997,7]
[321481269,1712230241157,-1281.5331215,0.00035,4]
[321481270,1712230241168,-150.0,0.00035,2]
[321481271,1712230241177,-204.63259374,0.00035,2]
[321481272,1712230241187,-204.63259374,0.00035,2]
[321481273,1712230241198,-204.63259374,0.00035,2]
[321481274,1712230241207,-593.42023571,0.00035,15]
[321481275,1712230241218,-569.6,0.00035063,2]
[321481276,1712230241229,-201.07596857,0.00035081,7]
[321481277,1712230241240,-155.26020619,0.00035146,7]
[321481278,1712230241250,-544.32,0.00035313,2]
[321481279,1712230241260,-305.64072438,0.00035351,7]
[321481280,1712230241270,-153.09301931,0.0003537,7]
[321481281,1712230241279,-389.01570141,0.00035432,2]
[321481282,1712230241289,-1315.35580752,0.00035432,2]
[321481283,1712230241301,-150.0,0.00035472,2]
[321481284,1712230241311,-201.07596857,0.00035492,7]
[321481285,1712230241322,-151.0,0.00035525,7]
[321481286,1712230241336,-201.07596857,0.00035562,7]
[321481287,1712230241345,-376.42967792,0.00035602,7]
[321481288,1712230241356,-999.34,0.0003567,2]
[321481289,1712230241365,-153.82631398,0.00035673,7]
[321481290,1712230241376,-155.26020619,0.00035716,7]
[321481291,1712230241386,-176.66265931,0.00035736,7]
[321481292,1712230241396,-376.42967792,0.00035788,7]
[321481293,1712230241405,-153.87719975,0.00035871,7]
[321481294,1712230241414,-376.42967792,0.00035883,7]
[321481295,1712230241424,-159.12958476,0.00035934,7]
[321481296,1712230241437,-150.0,0.00036,2]
[321481297,1712230241446,-153.87719975,0.00036003,7]
[321481298,1712230241455,-156.09819117,0.00036008,7]
[321481299,1712230241464,-157.30997332,0.0003606,7]
[321481300,1712230241473,-300.12,0.0003606,2]
[321481301,1712230241483,-153.87719975,0.0003607,7]
[321481302,1712230241494,-376.42967792,0.00036095,7]
[321481303,1712230241503,-153.87719975,0.00036145,7]
[321481304,1712230241513,-542.99954631,0.00036159,7]
[321481305,1712230241522,-151.0,0.0003625,4]
[321481306,1712230241532,-150.0,0.00036337,2]
[321481307,1712230241541,-151.29625457,0.00036462,7]
[321481308,1712230241550,-153.87719975,0.00036475,7]
[321481309,1712230241560,-999.34,0.0003648,2]
[321481310,1712230241569,-305.64072438,0.00036559,7]
[321481311,1712230241581,-153.45332323,0.00036577,7]
[321481312,1712230241591,-376.42967792,0.000367,7]
[321481313,1712230241600,-154.06850799,0.00036798,7]
[321481314,1712230241611,-201.07596857,0.00036808,7]
[321481315,1712230241620,-153.87719975,0.00036871,7]
[321481316,1712230241630,-156.09819117,0.00036886,7]
[321481317,1712230241639,-153.09301931,0.00036931,7]
[321481318,1712230241650,-184.247,0.00036975,2]
[321481319,1712230241660,-213.576,0.00036975,2]
[321481320,1712230241669,-151.0,0.0003699,2]
[321481321,1712230241680,-4783.51462811,0.00037,4]
[321481322,1712230241690,-30000.0,0.00037,3]
[321481323,1712230241701,-200.0,0.00037,2]
[321481324,1712230241714,-176.3492321,0.00037008,7]
[321481325,1712230241724,-954.24,0.00037059,2]
[321481326,1712230241734,-201.07596857,0.00037094,7]
[321481327,1712230241745,-475.44,0.00037124,2]
[321481328,1712230241755,-10000.0,0.00037134,2]
[321481329,1712230241764,-201.07596857,0.00037165,7]
[321481330,1712230241774,-150.0,0.00037203,2]
[321481331,1712230241786,-999.34,0.0003729,2]
[321481332,1712230241796,-201.07596857,0.00037373,7]
[321481333,1712230241806,-153.09301931,0.00037498,7]
[321481334,1712230241815,-1000.0,0.000375,2]
[321481335,1712230241826,-305.64072438,0.00037502,7]
[321481336,1712230241835,-542.99954631,0.00037526,7]
[321481337,1712230241845,-189.30894272,0.00037574,7]
[321481338,1712230241854,-300.12,0.00037575,2]
[321481339,1712230242183,-1000.0,0.000376,7]
[321481340,1712230242218,-155.26020619,0.0003763,7]
[321481341,1712230242228,-176.3492321,0.00037668,7]
[321481342,1712230242238,-159.12958476,0.0003769,7]
[321481343,1712230242248,-75000.00000099,0.000377,2]
[321481344,1712230242257,-153.87719975,0.00037705,7]
[321481345,1712230242268,-376.42967792,0.00037748,7]
[321481346,1712230242278,-155.26020619,0.00037758,7]
[321481347,1712230242286,-151.80598542,0.00037899,2]
[321481348,1712230242296,-242.369205,0.000379,12]
[321481349,1712230242306,-392.369205,0.000379,12]
[321481350,1712230242315,-153.87719975,0.00037978,7]
[321481351,1712230242326,-305.64072438,0.0003799,7]
[321481352,1712230242336,-10000.0,0.00038,3]
[321481353,1712230242346,-1000.0,0.00038,2]
[321481354,1712230242356,-1000.0,0.00038,2]
[321481355,1712230242368,-1567.9,0.00038027,15]
[321481356,1712230242379,-389.01570141,0.00038065,2]
[321481357,1712230242389,-1315.35580752,0.00038065,2]
[321481358,1712230242403,-150.0,0.00038068,2]
[321481359,1712230242413,-153.82631398,0.00038089,7]
[321481360,1712230242423,-1000.0,0.000381,2]
[321481361,1712230242434,-1392.330828,0.000381,2]
[321481362,1712230242444,-155.54109467,0.00038174,7]
[321481363,1712230242453,-151.29625457,0.00038183,7]
[321481364,1712230242463,-1000.0,0.000382,2]
[321481365,1712230242472,-201.07596857,0.00038209,7]
[321481366,1712230242482,-166.66666666,0.00038237,7]
[321481367,1712230242492,-1000.0,0.000383,2]
[321481368,1712230242502,-542.99954631,0.00038316,7]
[321481369,1712230242511,-1997.0,0.00038356,2]
[321481370,1712230242521,-153.09301931,0.00038357,7]
[321481371,1712230242531,-153.87719975,0.00038376,7]
[321481372,1712230242544,-10000.0,0.00038449,2]
[321481373,1712230242553,-542.99954631,0.00038471,7]
[321481374,1712230242563,-490.11815053,0.000385,4]
[321481375,1712230242575,-518.98,0.00038533,2]
[321481376,1712230242585,-153.45332323,0.00038627,7]
[321481377,1712230242594,-305.64072438,0.00038637,7]
[321481378,1712230242603,-189.30894272,0.00038698,7]
[321481379,1712230242613,-155.97526314,0.000387,4]
[321481380,1712230242622,-554.53127271,0.00038722,11]
[321481381,1712230242631,-164.13527554,0.00038752,7]
[321481382,1712230242641,-475.44,0.0003889,2]
[321481383,1712230242651,-150.0,0.00038899,2]
[321481384,1712230242661,-4065.34553289,0.000389,15]
[321481385,1712230242670,-376.42967792,0.0003893,7]
[321481386,1712230242679,-150.0,0.00038933,2]
[321481387,1712230242689,-1876.61601221,0.0003899,3]
[321481388,1712230242699,-500.0,0.00038999,7]
[321481389,1712230242710,-500.0,0.00038999,7]
[321481390,1712230242719,-500.0,0.00038999,7]
[321481391,1712230242729,-500.0,0.00038999,7]
[321481392,1712230242739,-500.0,0.00038999,7]
[321481393,1712230242750,-500.0,0.00038999,7]
[321481394,1712230242759,-500.0,0.00038999,7]
[321481395,1712230242769,-500.0,0.00038999,7]
[321481396,1712230242778,-500.0,0.00038999,7]
[321481397,1712230242789,-500.0,0.00038999,7]
[321481398,1712230242798,-500.0,0.00038999,7]
[321481399,1712230242808,-500.0,0.00038999,7]
[321481402,1712230242818,-500.0,0.00038999,7]
[321481405,1712230242832,-500.0,0.00038999,7]
[321481408,1712230242843,-500.0,0.00038999,7]
[321481411,1712230242853,-500.0,0.00038999,7]
[321481413,1712230242863,-500.0,0.00038999,7]
[321481415,1712230242872,-500.0,0.00038999,7]
[321481417,1712230242882,-500.0,0.00038999,7]
[321481419,1712230242891,-500.0,0.00038999,7]
[321481420,1712230242900,-500.0,0.00038999,7]
[321481421,1712230242910,-500.0,0.00038999,7]
[321481422,1712230242920,-500.0,0.00038999,7]
[321481423,1712230242929,-500.0,0.00038999,7]
[321481424,1712230242939,-500.0,0.00038999,7]